bitfinex-derivatives/quotes_BTCF0:USTF0_20251118
["timestamp","ask_amount","ask_price","bid_price","bid_amount"]
[1763479554708,0.42677,92736.0,92715.0,0.57711]
[1763479554911,0.1079462,92735.0,92715.0,0.63328]
[1763479555116,0.3608,92745.0,92715.0,0.63328]
[1763479555117,0.00219803,92730.0,92718.0,0.1079643]
[1763479555317,0.00219803,92730.0,92723.0,0.3608]
[1763479555518,0.5395031,92774.0,92723.0,0.3608]
[1763479555519,0.3608,92765.0,92724.0,0.3608]
[1763479555718,0.3608,92794.0,92764.0,0.3608]
[1763479555925,0.3608,92806.0,92780.0,0.3608]
[1763479556113,0.3608,92806.0,92790.0,0.31750566]
[1763479556420,0.3608,92798.0,92788.0,0.3608]
[1763479556612,0.3608,92798.0,92778.0,0.3608]
[1763479556921,0.00219803,92780.0,92779.0,0.00016166]
[1763479558222,0.11009093,92780.0,92779.0,0.27256166]
[1763479558413,0.00219803,92780.0,92779.0,0.00016166]
[1763479558609,0.3608,92793.0,92779.0,0.00016166]
[1763479558819,0.00219803,92790.0,92780.0,0.31750566]
[1763479559017,0.00016166,92802.0,92789.0,0.3608]
[1763479559213,0.11006773,92800.0,92780.0,0.31750566]
[1763479559413,0.00219803,92800.0,92781.0,0.27232]
[1763479559614,0.00219803,92800.0,92795.0,0.3608]
[1763479559813,0.00219803,92800.0,92796.0,0.27228]
[1763479560220,0.1078846,92788.0,92780.0,0.31850566]
[1763479560423,0.107888,92785.0,92780.0,0.001]
[1763479560618,0.3608,92787.0,92761.0,0.3608]
[1763479560619,0.34927125,92787.0,92762.0,0.27224]
[1763479560816,0.34927125,92787.0,92777.0,0.14537118]
[1763479561023,0.3608,92832.0,92794.0,0.04917]
[1763479561223,0.3608,92848.0,92816.0,0.3608]
[1763479561423,0.3608,92848.0,92831.0,0.14537118]
[1763479561722,0.3608,92848.0,92832.0,0.27276]
[1763479561723,0.00219803,92840.0,92832.0,0.27276]
[1763479561924,0.00016156,92849.0,92837.0,0.3608]
[1763479562128,0.3608,92845.0,92839.0,0.14537118]
[1763479562323,0.1078337,92831.0,92830.0,0.00016156]
[1763479562532,0.00219803,92830.0,92809.0,0.08530129]
[1763479562723,0.4686527,92815.0,92800.0,0.14537118]
[1763479563027,0.1078734,92797.0,92792.0,0.00013711]
[1763479563327,0.00219803,92800.0,92792.0,0.00013711]
[1763479563520,0.00219803,92800.0,92795.0,0.3608]
[1763479563721,0.00219803,92800.0,92792.0,0.00013711]
[1763479564027,0.00016156,92805.0,92792.0,0.00013711]
[1763479564229,0.00016156,92805.0,92797.0,0.3608]
[1763479564528,0.1078389,92827.0,92799.0,0.04917]
[1763479564728,0.00219803,92820.0,92810.0,0.31690059]
[1763479564922,0.3608,92816.0,92810.0,0.31690059]
[1763479565122,0.3608,92816.0,92809.0,0.27264]
[1763479565323,0.1078579,92811.0,92797.0,0.3608]
[1763479565625,0.00219803,92810.0,92798.0,0.27256]
[1763479566030,0.1078652,92804.0,92797.0,0.3608]
[1763479566327,0.1078708,92800.0,92795.0,0.00016156]
[1763479566515,0.3608,92796.0,92795.0,0.00016156]
[1763479566714,0.00219803,92800.0,92795.0,0.00016156]
[1763479566921,0.3608,92825.0,92796.0,0.3803534]
[1763479567122,0.36299803,92810.0,92797.0,0.001]
[1763479567319,0.1078704,92800.0,92797.0,0.001]
[1763479567721,0.1078704,92800.0,92795.0,1.56e-06]
[1763479567922,0.5394024,92791.0,92754.0,0.3608]
[1763479568121,0.00219803,92760.0,92754.0,0.3608]
[1763479568726,0.3608,92798.0,92759.0,0.3608]
[1763479568928,0.00016166,92788.0,92780.0,0.31690059]
[1763479569829,0.00016166,92788.0,92787.0,0.3608]
[1763479570338,7.923e-05,92797.0,92794.0,0.1078755]
[1763479570532,0.3608,92823.0,92817.0,0.1078492]
[1763479570830,0.00219803,92830.0,92817.0,0.27244]
[1763479571030,0.3608,92840.0,92829.0,0.1078353]
[1763479571334,0.00219803,92840.0,92830.0,0.67770059]
[1763479571525,5.788e-05,92839.0,92830.0,0.67770059]
[1763479571728,5.788e-05,92839.0,92838.0,0.3608]
[1763479572221,0.00016166,92844.0,92839.0,0.1078243]
[1763479572424,0.00016166,92844.0,92841.0,0.107822]
[1763479572620,0.1077971,92863.0,92840.0,0.4686226]
[1763479572824,0.1078062,92855.0,92840.0,0.67770059]
[1763479573028,0.3608,92894.0,92854.0,0.3608]
[1763479573231,0.00219803,92870.0,92867.0,0.3608]
[1763479573730,0.00219803,92870.0,92868.0,0.27284]
[1763479574031,0.00219803,92870.0,92867.0,0.3608]
[1763479574225,0.00219803,92870.0,92859.0,0.00016157]
[1763479574226,0.00219803,92870.0,92860.0,0.27272]
[1763479574534,0.00219803,92870.0,92866.0,0.3608]
[1763479574730,0.00016157,92878.0,92868.0,0.3608]
[1763479574932,0.3608,92912.0,92877.0,0.3608]
[1763479575133,0.00219803,92910.0,92901.0,0.3608]
[1763479575432,0.00219803,92910.0,92880.0,0.37964416]
[1763479575433,0.00219803,92910.0,92909.0,0.3608]
[1763479575628,0.107732,92919.0,92909.0,0.3608]
[1763479576127,0.00219803,92920.0,92909.0,0.3608]
[1763479576343,0.00016147,92923.0,92917.0,0.3608]
[1763479576930,0.00016147,92923.0,92917.0,0.4685333]
[1763479577130,0.00016147,92923.0,92920.0,0.3608]
[1763479577732,0.00016147,92923.0,92921.0,0.27252]
[1763479578232,0.3608,92942.0,92921.0,0.27252]
[1763479578540,0.00219803,92940.0,92935.0,0.3608]
[1763479578930,0.1077083,92939.0,92934.0,0.27244]
[1763479579628,0.00219803,92940.0,92927.0,0.00016138]
[1763479579833,0.1077185,92931.0,92927.0,0.00016138]
[1763479580036,0.3608,92933.0,92927.0,0.00016138]
[1763479580240,0.00519803,92940.0,92929.0,0.3608]
[1763479580540,0.00519803,92940.0,92927.0,0.00016138]
[1763479580730,0.4685188,92930.0,92927.0,0.00016138]
[1763479581126,0.1077127,92936.0,92927.0,0.00016138]
[1763479581336,0.00519803,92940.0,92929.0,0.3608]
[1763479581636,0.00519803,92940.0,92927.0,0.00016138]
[1763479581836,0.1077206,92929.0,92927.0,0.00016138]
[1763479582426,0.3608,92932.0,92927.0,0.00016138]
[1763479582627,0.1077176,92931.0,92927.0,0.00016138]
[1763479582834,0.1077176,92931.0,92911.0,0.3608]
[1763479582835,0.1077347,92917.0,92911.0,0.3608]
[1763479583038,0.36299803,92920.0,92902.0,0.3608]
[1763479583241,0.00219803,92910.0,92902.0,0.63288]
[1763479583432,0.00219803,92910.0,92903.0,0.27204]
[1763479584236,0.00219803,92910.0,92902.0,0.44490437]
[1763479584237,0.1077559,92898.0,92897.0,0.00016138]
[1763479584437,0.1077559,92898.0,92869.0,0.36093377]
[1763479584438,0.1077731,92884.0,92869.0,0.36093377]
[1763479584628,0.1077882,92871.0,92869.0,0.00013377]
[1763479584833,0.3608,92874.0,92853.0,0.3608]
[1763479584834,0.1078047,92856.0,92853.0,0.3608]
[1763479585033,0.1077866,92872.0,92842.0,0.08538317]
[1763479585034,0.1078125,92850.0,92842.0,0.08538317]
[1763479585236,0.1078185,92844.0,92838.0,0.3608]
[1763479585433,0.0023596,92850.0,92838.0,0.3608]
[1763479585636,0.1078313,92833.0,92832.0,0.00016157]
[1763479585831,7.556e-05,92833.0,92832.0,0.00016157]
[1763479586927,0.3608,92855.0,92832.0,0.40016157]
[1763479587243,0.0023596,92850.0,92844.0,0.3608]
[1763479587448,0.0023596,92850.0,92832.0,0.00016157]
[1763479587734,0.1078227,92841.0,92832.0,0.00016157]
[1763479587939,0.3608,92847.0,92832.0,0.00016157]
[1763479587940,0.1078285,92836.0,92832.0,0.00016157]
[1763479588334,0.1078285,92836.0,92781.0,0.05669025]
[1763479588335,0.1078669,92803.0,92784.0,0.3608]
[1763479588533,0.10792551,92802.0,92784.0,0.3608]
[1763479588731,0.3608,92798.0,92776.0,0.3608]
[1763479588938,0.1078915,92782.0,92758.0,0.3608]
[1763479589134,0.3608,92787.0,92767.0,0.3608]
[1763479589329,0.00219803,92770.0,92767.0,0.3608]
[1763479589637,0.00219803,92770.0,92768.0,0.00016166]
[1763479589638,0.00012897,92769.0,92768.0,0.00016166]
[1763479589835,0.1079057,92769.0,92768.0,0.00016166]
[1763479590227,0.001327,92770.0,92768.0,0.00016166]
[1763479590638,0.1092323,92770.0,92749.0,0.3608]
[1763479590839,6.894e-05,92769.0,92750.0,0.00087103]
[1763479591035,6.894e-05,92769.0,92750.0,0.10879773]
[1763479591036,0.00205967,92760.0,92750.0,0.10879773]
[1763479591233,0.00205967,92760.0,92757.0,0.3608]
[1763479591434,0.00205967,92760.0,92750.0,0.00087103]
[1763479591729,0.1079243,92754.0,92750.0,0.00087103]
[1763479592043,0.00205967,92760.0,92750.0,0.00087103]
[1763479592237,0.1079237,92754.0,92750.0,0.00087103]
[1763479592430,0.3608,92755.0,92750.0,0.00087103]
[1763479592832,0.00205967,92760.0,92750.0,0.00087103]
[1763479593037,0.3608,92757.0,92750.0,0.00087103]
[1763479593234,0.00205967,92760.0,92750.0,0.00087103]
[1763479593834,0.10997697,92760.0,92750.0,0.00087103]
[1763479594136,0.3608,92784.0,92759.0,0.3608]
[1763479594332,0.3608,92797.0,92785.0,0.1078865]
[1763479594539,0.3608,92797.0,92790.0,0.36167103]
[1763479594731,0.00205967,92800.0,92790.0,0.36167103]
[1763479594933,0.3608,92823.0,92799.0,0.1078699]
[1763479595130,0.3608,92823.0,92815.0,0.3608]
[1763479595428,0.00016166,92820.0,92816.0,0.27184]
[1763479595634,0.00222133,92820.0,92815.0,0.3608]
[1763479595937,0.00222133,92820.0,92816.0,0.107851]
[1763479596144,0.00222133,92820.0,92816.0,0.27184]
[1763479596332,0.00016166,92820.0,92816.0,0.27184]
[1763479596538,0.3608,92843.0,92816.0,0.27184]
[1763479596733,0.4686314,92833.0,92830.0,0.00087103]
[1763479597247,0.1078324,92832.0,92830.0,0.00087103]
[1763479597945,0.00222133,92840.0,92830.0,0.00087103]
[1763479597946,0.00222133,92840.0,92831.0,0.27184]
[1763479598132,0.00222133,92840.0,92831.0,0.63264]
[1763479598335,0.00016166,92840.0,92839.0,0.3608]
[1763479599136,0.00222133,92840.0,92839.0,0.63256]
[1763479599336,0.36302133,92840.0,92822.0,0.00016166]
[1763479599539,0.3608,92830.0,92822.0,0.00016166]
[1763479599736,0.1078405,92826.0,92822.0,0.00016166]
[1763479599937,0.36285967,92830.0,92822.0,0.00016166]
[1763479600152,0.1078359,92829.0,92822.0,0.00016166]
[1763479600444,0.00205967,92830.0,92822.0,0.00016166]
[1763479600648,0.1078407,92825.0,92822.0,0.00016166]
[1763479600845,0.00205967,92830.0,92822.0,0.00016166]
[1763479602134,0.1078392,92827.0,92822.0,0.00016166]
[1763479602339,0.1078425,92824.0,92822.0,0.00016166]
[1763479602640,0.00205967,92830.0,92822.0,0.00016166]
[1763479602943,0.1078359,92829.0,92822.0,0.00016166]
[1763479603147,0.3608,92833.0,92822.0,0.00016166]
[1763479603366,0.00016166,92840.0,92833.0,0.1078312]
[1763479603644,0.107829,92835.0,92830.0,0.00087103]
[1763479604249,0.00222133,92840.0,92830.0,0.00087103]
[1763479604745,0.00222133,92840.0,92832.0,0.3608]
[1763479605438,0.00222133,92840.0,92832.0,0.4686318]
[1763479605641,0.00222133,92840.0,92838.0,0.1078254]
[1763479605642,0.00016166,92840.0,92838.0,0.1078254]
[1763479605943,0.1077901,92869.0,92848.0,0.107813]
[1763479606137,0.3608,92890.0,92872.0,0.1077854]
[1763479606354,0.36285967,92890.0,92880.0,0.00087103]
[1763479606947,0.1077751,92882.0,92880.0,0.00087103]
[1763479607247,0.1077744,92882.0,92880.0,0.00087103]
[1763479607450,0.1077802,92877.0,92876.0,0.00016157]
[1763479607746,0.00205967,92880.0,92876.0,0.00016157]
[1763479607942,0.10983727,92880.0,92876.0,0.00016157]
[1763479608348,0.1077778,92879.0,92876.0,0.00016157]
[1763479608541,0.00205967,92880.0,92878.0,0.3608]
[1763479608737,0.00205967,92880.0,92876.0,0.00016157]
[1763479608738,0.1077778,92879.0,92876.0,0.00016157]
[1763479608940,0.00205967,92880.0,92854.0,0.3608]
[1763479608941,0.1078035,92857.0,92854.0,0.3608]
[1763479609342,0.1078052,92856.0,92854.0,0.3608]
[1763479609841,0.00205967,92860.0,92854.0,0.3608]
[1763479610147,0.1078057,92855.0,92854.0,0.3608]
[1763479610352,0.1078032,92858.0,92854.0,0.3608]
[1763479610542,0.00205967,92860.0,92854.0,0.3608]
[1763479610748,0.1078057,92855.0,92854.0,0.3608]
[1763479611138,0.1078053,92856.0,92854.0,0.3608]
[1763479611339,0.1078103,92851.0,92850.0,0.00087103]
[1763479612447,0.3608,92861.0,92850.0,0.00087103]
[1763479612649,0.1078051,92856.0,92850.0,0.00087103]
[1763479612849,0.00205967,92860.0,92850.0,0.00087103]
[1763479613042,0.1078072,92854.0,92850.0,0.00087103]
[1763479613248,0.10986037,92860.0,92848.0,0.00016157]
[1763479613249,0.1078127,92849.0,92848.0,1.57e-06]
[1763479613453,0.1078402,92826.0,92818.0,0.3608]
[1763479613648,0.00205967,92830.0,92820.0,0.36167103]
[1763479613958,0.00399,92860.0,92840.0,0.1078224]
[1763479614154,0.00399,92860.0,92850.0,0.00087103]
[1763479614155,0.1078103,92851.0,92850.0,0.00087103]
[1763479614463,0.1078211,92842.0,92841.0,0.00016157]
[1763479614848,0.3608,92863.0,92841.0,0.00016157]
[1763479615046,0.3608,92863.0,92850.0,0.00087103]
[1763479615047,0.00621124,92860.0,92850.0,0.00087103]
[1763479615259,0.00621124,92860.0,92855.0,0.3608]
[1763479615745,0.00415157,92860.0,92859.0,0.3608]
[1763479616254,0.00415157,92860.0,92859.0,0.4686011]
[1763479616448,0.1077825,92875.0,92860.0,0.00087103]
[1763479616644,0.00205967,92870.0,92860.0,0.00087103]
[1763479616846,0.00205967,92870.0,92861.0,0.1077987]
[1763479617060,0.3608,92887.0,92869.0,0.3608]
[1763479617352,0.3608,92887.0,92878.0,0.3608]
[1763479617553,0.1077747,92882.0,92880.0,0.00087103]
[1763479617943,0.1077791,92878.0,92870.0,0.00087103]
[1763479618143,0.1077828,92875.0,92870.0,0.00087103]
[1763479618349,0.1077866,92872.0,92870.0,0.00087103]
[1763479618544,0.1077866,92872.0,92869.0,0.00016157]
[1763479618755,0.1077899,92869.0,92860.0,0.00087103]
[1763479619058,0.00205967,92870.0,92860.0,0.00087103]
[1763479619559,0.004,92869.0,92860.0,0.00087103]
[1763479619758,0.1117904,92869.0,92860.0,0.00087103]
[1763479619945,0.1077915,92868.0,92860.0,0.00087103]
[1763479620148,0.004,92869.0,92860.0,0.00087103]
[1763479620356,0.004,92869.0,92867.0,0.3608]
[1763479620560,0.004,92869.0,92868.0,0.27128]
[1763479620857,0.3608,92902.0,92870.0,0.00087103]
[1763479621055,0.00205967,92880.0,92870.0,0.00087103]
[1763479621253,0.00205967,92880.0,92875.0,0.3608]
[1763479621555,0.1077555,92899.0,92882.0,0.1077736]
[1763479621753,0.1077548,92899.0,92886.0,0.3608]
[1763479621957,0.00205967,92890.0,92879.0,0.27128]
[1763479622258,0.1077755,92881.0,92880.0,0.00087103]
[1763479622450,0.00219803,92880.0,92875.0,0.00016157]
[1763479622646,0.1068112,92851.0,92849.0,0.3608]
[1763479622950,0.00219803,92860.0,92849.0,0.44531434]
[1763479623153,0.00319803,92860.0,92849.0,0.44531434]
[1763479623344,0.00319803,92860.0,92857.0,0.3608]
[1763479623552,0.1078115,92850.0,92849.0,0.08467591]
[1763479623750,0.001,92860.0,92849.0,0.00016157]
[1763479623955,0.00319803,92860.0,92849.0,0.00016157]
[1763479624150,0.001,92860.0,92849.0,0.08426201]
[1763479624350,0.001,92860.0,92851.0,0.05669025]
[1763479624351,0.00319803,92860.0,92851.0,0.05669025]
[1763479624646,0.00319803,92860.0,92849.0,0.00016157]
[1763479624846,0.00319803,92860.0,92849.0,0.05685182]
[1763479625162,0.001,92860.0,92856.0,0.3608]
[1763479625460,0.1078011,92859.0,92856.0,0.3608]
[1763479625658,0.001,92860.0,92850.0,0.05669025]
[1763479625858,0.00319803,92860.0,92849.0,0.05685182]
[1763479626155,0.00319803,92860.0,92858.0,0.3608]
[1763479626461,0.001,92860.0,92858.0,0.3608]
[1763479626658,0.00069873,92860.0,92859.0,0.2871011]
[1763479626858,0.00016157,92868.0,92867.0,0.1793]
[1763479627173,0.3608,92906.0,92879.0,0.1077773]
[1763479627456,0.3608,92898.0,92884.0,0.3608]
[1763479627650,0.1077773,92880.0,92876.0,0.27124]
[1763479627854,0.1077857,92873.0,92867.0,0.63204]
[1763479628262,0.00016148,92879.0,92872.0,0.3608]
[1763479628559,0.1077834,92875.0,92872.0,0.3608]
[1763479628755,0.1077834,92875.0,92861.0,0.00016148]
[1763479628756,0.2808676,92862.0,92861.0,0.00016148]
[1763479628955,0.2808676,92862.0,92841.0,0.3608]
[1763479628956,0.1929308,92842.0,92841.0,0.3608]
[1763479629154,0.17307,92828.0,92826.0,0.07560097]
[1763479629356,0.1078382,92827.0,92823.0,0.07560097]
[1763479629551,0.00219803,92830.0,92822.0,0.07560097]
[1763479629754,0.00219803,92830.0,92821.0,0.3608]
[1763479629755,0.00219803,92830.0,92825.0,0.07560097]
[1763479629964,0.1078392,92827.0,92824.0,0.07560097]
[1763479630163,0.00219803,92830.0,92824.0,0.07560097]
[1763479630465,0.00219803,92830.0,92829.0,0.3608]
[1763479631160,0.00016157,92837.0,92829.0,0.44877]
[1763479631357,0.00016157,92837.0,92829.0,0.3608]
[1763479631552,0.00016157,92837.0,92836.0,0.2871278]
[1763479631960,0.1077925,92867.0,92836.0,0.07560097]
[1763479632169,0.00219803,92860.0,92855.0,0.3608]
[1763479632465,0.3608,92893.0,92859.0,0.3608]
[1763479632660,0.00219803,92880.0,92870.0,0.3608]
[1763479632860,0.00219803,92880.0,92879.0,0.3608]
[1763479633059,0.00016157,92889.0,92879.0,0.63204]
[1763479633258,0.00016157,92889.0,92870.0,0.36096157]
[1763479633259,0.00016157,92889.0,92878.0,0.3608]
[1763479633568,0.00016157,92889.0,92870.0,0.36096157]
[1763479633569,0.00016157,92889.0,92880.0,0.3608]
[1763479633758,0.107781,92877.0,92870.0,0.36096157]
[1763479633963,0.1077854,92873.0,92870.0,0.00016157]
[1763479634159,0.1077831,92875.0,92870.0,0.00016157]
[1763479634476,0.1077856,92873.0,92870.0,0.00016157]
[1763479635166,0.00219803,92880.0,92870.0,0.00016157]
[1763479635362,0.1078046,92856.0,92855.0,0.3608]
[1763479635759,0.00219803,92860.0,92855.0,0.3608]
[1763479636265,0.3790241,92874.0,92855.0,0.3608]
[1763479636565,0.00016148,92874.0,92863.0,0.3608]
[1763479636757,0.00016148,92874.0,92871.0,0.3608]
[1763479636758,0.1077848,92873.0,92871.0,0.3608]
[1763479636964,0.10794558,92874.0,92863.0,0.3608]
[1763479637161,0.00219803,92870.0,92863.0,0.3608]
[1763479637665,0.00016148,92874.0,92863.0,0.3608]
[1763479637969,0.00219803,92870.0,92869.0,0.3608]
[1763479639067,0.00219803,92870.0,92860.0,0.31650628]
[1763479639373,0.00219803,92870.0,92869.0,0.3608]
[1763479640066,0.00219803,92870.0,92862.0,0.2712]
[1763479640268,0.00219803,92870.0,92861.0,0.3608]
[1763479640463,0.1078005,92860.0,92855.0,0.00016148]
[1763479640659,0.00219803,92860.0,92855.0,0.00016148]
[1763479641373,0.1078046,92856.0,92855.0,0.00016148]
[1763479641574,0.2585846,92856.0,92855.0,0.00016148]
[1763479641771,0.3608,92899.0,92861.0,0.1077985]
[1763479642071,0.00093067,92900.0,92886.0,0.3608]
[1763479642375,0.00093067,92900.0,92895.0,0.3608]
[1763479642760,0.00093067,92900.0,92896.0,0.27116]
[1763479643268,0.1077627,92893.0,92890.0,0.00200002]
[1763479643463,0.4685581,92897.0,92890.0,0.00200002]
[1763479643773,0.00093067,92900.0,92890.0,0.00200002]
[1763479643972,0.00093067,92900.0,92895.0,0.3608]
[1763479644663,0.00093067,92900.0,92890.0,0.3185063]
[1763479644664,0.00193067,92900.0,92890.0,0.3185063]
[1763479644976,0.00016148,92907.0,92906.0,0.2596666]
[1763479645160,0.00016148,92907.0,92906.0,0.42308]
[1763479645364,0.1077466,92906.0,92899.0,0.3608]
[1763479645565,0.1077502,92903.0,92900.0,0.27316002]
[1763479645762,0.00016148,92907.0,92906.0,0.15192]
[1763479646075,0.3608,92927.0,92910.0,0.00200002]
[1763479646277,0.107724,92926.0,92914.0,0.3608]
[1763479646486,0.1077079,92940.0,92922.0,0.3608]
[1763479646770,0.00093067,92940.0,92932.0,0.3608]
[1763479646977,0.00016139,92945.0,92932.0,0.3608]
[1763479647274,0.00016139,92945.0,92940.0,0.00200002]
[1763479647479,0.1077025,92944.0,92940.0,0.00200002]
[1763479647663,0.0741,92941.0,92940.0,0.00200002]
[1763479647868,0.00016139,92945.0,92940.0,0.36280002]
[1763479648969,0.00016139,92945.0,92941.0,0.27108]
[1763479649465,0.00016139,92945.0,92940.0,0.00200002]
[1763479649466,0.1077025,92944.0,92940.0,0.00200002]
[1763479649669,0.3608,92941.0,92940.0,0.00200002]
[1763479649870,0.00016139,92945.0,92940.0,0.00200002]
[1763479650374,0.00016139,92945.0,92944.0,0.07478]
[1763479650571,0.00116139,92945.0,92941.0,0.3608]
[1763479650771,0.1077025,92944.0,92942.0,0.27104]
[1763479651074,0.1077025,92944.0,92940.0,0.00200002]
[1763479651475,0.00116139,92945.0,92940.0,0.00200002]
[1763479652272,0.00116139,92945.0,92944.0,0.50923]
[1763479652479,0.00016139,92945.0,92944.0,0.43558]
[1763479652870,0.0019,92965.0,92955.0,0.107689]
[1763479653069,0.0019,92965.0,92964.0,0.07478]
[1763479653275,0.3608,92987.0,92964.0,0.43558]
[1763479653476,0.10860387,92970.0,92965.0,0.271]
[1763479653678,0.1076735,92969.0,92965.0,0.271]
[1763479653975,0.00093067,92970.0,92965.0,0.271]
[1763479653976,0.00093067,92970.0,92965.0,0.35721746]
[1763479654270,0.00016139,92976.0,92965.0,0.35721746]
[1763479654271,0.1076666,92975.0,92965.0,0.35721746]
[1763479654476,0.1076666,92975.0,92974.0,0.3608]
[1763479654779,0.00016139,92976.0,92974.0,0.3608]
[1763479654973,0.1076666,92975.0,92974.0,0.3608]
[1763479655482,0.00016139,92976.0,92975.0,0.07478]
[1763479655668,0.00016139,92976.0,92975.0,0.14843]
[1763479655872,0.00654496,92993.0,92975.0,0.14843]
[1763479656173,0.3608,93011.0,92992.0,0.50923]
[1763479656373,0.35452109,93028.0,93005.0,0.3608]
[1763479656575,0.35452109,93028.0,93000.0,0.00200002]
[1763479656576,0.0741,93002.0,93001.0,0.27092]
[1763479656772,0.1076319,93005.0,93001.0,0.27092]
[1763479656773,0.1076264,93010.0,93001.0,0.27092]
[1763479656967,0.00016129,93011.0,93009.0,0.43558]
[1763479657171,0.00016129,93011.0,93010.0,0.14843]
[1763479657372,0.00016129,93011.0,93010.0,0.15043002]
[1763479657877,0.00016129,93011.0,93010.0,0.00200002]
[1763479658381,0.14636129,93011.0,93010.0,0.00200002]
[1763479658768,0.3608,93022.0,93010.0,0.00200002]
[1763479658769,0.0150392,93040.0,93011.0,0.4]
[1763479658974,0.3608,93074.0,93039.0,0.3608]
[1763479659177,0.3608,93042.0,93040.0,0.27307803]
[1763479659372,0.3608,93045.0,93040.0,0.00219803]
[1763479659574,0.04395,93024.0,93011.0,0.3608]
[1763479659886,0.04395,93024.0,93023.0,0.3608]
[1763479660684,0.00010533,93027.0,93023.0,0.63164]
[1763479660884,0.00010533,93027.0,93026.0,0.3608]
[1763479661181,0.04395,93024.0,93020.0,0.3608]
[1763479661376,0.04395,93024.0,93023.0,0.3608]
[1763479661582,0.00010533,93027.0,93024.0,0.1076099]
[1763479662174,0.00010533,93027.0,93023.0,0.3608]
[1763479662377,0.3608,93061.0,93023.0,0.3608]
[1763479662574,0.3608,93061.0,93050.0,0.00219803]
[1763479662780,0.1075771,93053.0,93050.0,0.00219803]
[1763479662979,0.04395,93048.0,93047.0,0.3608]
[1763479663172,0.1075859,93045.0,93037.0,0.3608]
[1763479663377,0.04395,93048.0,93040.0,0.00219803]
[1763479663577,0.1075876,93044.0,93040.0,0.00219803]
[1763479663778,0.04395,93048.0,93041.0,0.1075902]
[1763479663973,0.04395,93048.0,93047.0,0.3608]
[1763479663974,0.11805,93048.0,93047.0,0.3608]
[1763479664179,0.19015,93048.0,93047.0,0.3608]
[1763479664784,0.1075615,93066.0,93050.0,0.00219803]
[1763479665086,0.1462,93059.0,93058.0,0.3608]
[1763479665281,0.1462,93050.0,93049.0,0.0001612]
[1763479665687,0.04395,93048.0,93047.0,0.1609612]
[1763479665887,0.11805,93048.0,93047.0,0.1609612]
[1763479666277,0.3608,93060.0,93048.0,0.1075819]
[1763479666483,0.3608,93060.0,93050.0,0.00219803]
[1763479666889,0.1075652,93063.0,93050.0,0.00219803]
[1763479667085,0.4683693,93060.0,93050.0,0.00219803]
[1763479667287,0.1462,93051.0,93050.0,0.00219803]
[1763479667488,0.0001612,93064.0,93050.0,0.00219803]
[1763479667790,0.04395,93058.0,93050.0,0.00219803]
[1763479667985,0.1075717,93057.0,93055.0,0.3608]
[1763479668187,0.04395,93058.0,93050.0,0.27287803]
[1763479668393,0.0741,93055.0,93054.0,0.3608]
[1763479668688,0.1462,93051.0,93050.0,0.00219803]
[1763479668891,0.04395,93058.0,93050.0,0.00219803]
[1763479669186,0.507,93051.0,93050.0,0.00219803]
[1763479670083,0.51,93051.0,93050.0,0.00219803]
[1763479670282,0.1462,93047.0,93046.0,0.0001612]
[1763479670490,0.1462,93039.0,93038.0,0.3608]
[1763479670677,0.2537925,93039.0,93038.0,0.3608]
[1763479671585,0.03089,93038.0,93003.0,0.3608]
[1763479671890,0.0741,93001.0,93000.0,0.00233717]
[1763479672183,0.2538365,93001.0,93000.0,0.00013914]
[1763479672386,0.3608,93002.0,92985.0,0.08674992]
[1763479672580,0.3608,93002.0,92980.0,0.3153887]
[1763479672581,0.3608,93002.0,92990.0,0.00219803]
[1763479672782,0.3608,92991.0,92990.0,0.00219803]
[1763479673392,0.3608839,92991.0,92990.0,0.00219803]
[1763479673585,8.39e-05,92991.0,92990.0,0.15062803]
[1763479674082,8.39e-05,92991.0,92990.0,0.07697803]
[1763479674281,8.39e-05,92991.0,92984.0,0.00016129]
[1763479674282,0.107655,92985.0,92984.0,0.00016129]
[1763479674482,0.253855,92985.0,92984.0,0.00016129]
[1763479675083,0.107655,92985.0,92984.0,0.00016129]
[1763479675279,0.1076536,92987.0,92986.0,0.07478]
[1763479675487,0.3608839,92991.0,92990.0,0.00219803]
[1763479675787,0.468532,92991.0,92990.0,0.00219803]
[1763479675986,0.107655,92985.0,92984.0,0.00016129]
[1763479676690,0.253855,92985.0,92984.0,0.00016129]
[1763479676893,0.1076766,92967.0,92965.0,0.44900669]
[1763479677285,0.3608,92975.0,92974.0,0.07478]
[1763479677485,0.3608,92983.0,92970.0,0.00219803]
[1763479677687,0.1076712,92971.0,92970.0,0.00219803]
[1763479677992,0.07755,92971.0,92961.0,0.00016129]
[1763479678192,0.3608,92964.0,92961.0,0.00016129]
[1763479678497,0.00016129,92980.0,92962.0,0.1076809]
[1763479678687,0.00016129,92980.0,92970.0,0.00219803]
[1763479679089,0.1076529,92979.0,92970.0,0.00219803]
[1763479679288,0.00016129,92980.0,92974.0,0.3608]
[1763479679686,0.1076568,92975.0,92970.0,0.00219803]
[1763479679888,0.00016129,92980.0,92970.0,0.00219803]
[1763479680089,0.1066603,92973.0,92970.0,0.00219803]
[1763479680392,0.3608,92975.0,92970.0,0.00219803]
[1763479680599,0.00016129,92980.0,92979.0,0.14873]
[1763479680892,0.1076439,92986.0,92980.0,0.00219803]
[1763479681192,0.04395,93016.0,92990.0,0.14873]
[1763479681407,0.10761,93016.0,92999.0,0.107628]
[1763479681695,0.00016129,93017.0,93016.0,0.14873]
[1763479681991,0.00016129,93017.0,93016.0,0.19729]
[1763479682193,0.00016129,93017.0,93016.0,0.14873]
[1763479682381,0.00016129,93017.0,92953.0,0.10781929]
[1763479682382,0.1076281,93000.0,92999.0,0.14873]
[1763479682581,0.1076235,93004.0,93000.0,0.00219803]
[1763479682783,0.1076252,93002.0,93000.0,0.00219803]
[1763479683095,0.1076599,92973.0,92972.0,0.3608]
[1763479683297,0.1076599,92973.0,92970.0,0.14687529]
[1763479683488,0.07755,92971.0,92970.0,0.00219803]
[1763479683790,0.2706,92985.0,92970.0,0.00219803]
[1763479683791,5.524e-05,92972.0,92971.0,0.14873]
[1763479683998,0.00016129,92981.0,92980.0,0.14873]
[1763479684197,0.3608,92997.0,92980.0,0.51172803]
[1763479684391,0.3608,93001.0,92989.0,0.14873]
[1763479684592,0.3608,93003.0,92990.0,0.00219803]
[1763479684801,0.1076362,92993.0,92990.0,0.00219803]
[1763479685787,0.1076461,92984.0,92983.0,0.14467726]
[1763479685993,0.2706,92999.0,92983.0,0.14873]
[1763479686192,0.2706,92999.0,92990.0,0.00219803]
[1763479686388,0.262118,92991.0,92990.0,0.00219803]